bitfinex-derivatives/quotes_ETHF0:USTF0_20260118
["timestamp","ask_amount","ask_price","bid_price","bid_amount"]
[1768758187125,0.91234349,3337.0,3335.9,0.15269223]
[1768758187421,2.71284806,3337.6,3335.9,0.15269223]
[1768758187621,0.91234662,3337.5,3335.9,0.15269223]
[1768758187818,0.91234662,3337.4,3335.9,0.15269223]
[1768758188020,0.91234662,3337.3,3335.9,0.15269223]
[1768758188222,0.91234662,3337.2,3335.9,0.15269223]
[1768758188421,0.91234662,3337.1,3335.9,0.15269223]
[1768758188622,0.91234662,3337.0,3335.9,0.15269223]
[1768758188819,2.71284806,3337.6,3335.9,0.15269223]
[1768758189018,0.9123484,3337.5,3335.9,0.15269223]
[1768758189218,0.9123484,3337.4,3335.9,0.15269223]
[1768758189420,0.9123484,3337.3,3335.9,0.15269223]
[1768758189720,0.9123484,3337.2,3335.9,0.15269223]
[1768758189918,0.9123484,3337.1,3335.9,0.15269223]
[1768758190118,0.9123484,3337.0,3335.9,0.15269223]
[1768758190325,2.71284806,3337.6,3335.9,0.15269223]
[1768758190528,0.9123535,3337.5,3335.9,0.15269223]
[1768758190730,0.9123535,3337.4,3335.9,0.15269223]
[1768758191025,0.9123535,3337.3,3335.9,0.15269223]
[1768758191222,0.9123535,3337.2,3335.9,0.15269223]
[1768758191421,0.9123535,3337.1,3335.9,0.15269223]
[1768758191623,0.9123535,3337.0,3335.9,0.15269223]
[1768758191827,2.71284806,3337.6,3335.9,0.15269223]
[1768758192020,0.91235575,3337.5,3335.9,0.15269223]
[1768758192219,0.91235575,3337.4,3335.9,0.15269223]
[1768758192519,0.91235575,3337.3,3335.9,0.15269223]
[1768758192814,0.91235575,3337.2,3335.9,0.15269223]
[1768758193020,0.91235575,3337.1,3335.9,0.15269223]
[1768758193314,0.91235575,3337.0,3335.9,0.15269223]
[1768758193517,2.71284806,3337.6,3335.9,0.15269223]
[1768758193723,0.91236224,3337.5,3335.9,0.15269223]
[1768758193923,0.91236224,3337.4,3335.9,0.15269223]
[1768758194127,0.91236224,3337.3,3335.9,0.15269223]
[1768758194325,0.91236224,3337.2,3335.9,0.15269223]
[1768758194525,0.91236224,3337.1,3335.9,0.28899183]
[1768758194726,0.91236224,3337.0,3335.9,0.28899183]
[1768758194926,2.71284806,3337.6,3335.9,0.28899183]
[1768758195127,0.91236625,3337.5,3335.9,0.28899183]
[1768758195426,0.91236625,3337.4,3335.9,0.28899183]
[1768758195621,0.91236625,3337.3,3335.9,0.28899183]
[1768758195823,0.91236625,3337.2,3335.9,0.28899183]
[1768758196022,0.91236625,3337.1,3335.9,0.28899183]
[1768758196227,0.91236625,3337.0,3335.9,0.28899183]
[1768758196430,2.71284806,3337.6,3335.9,0.28899183]
[1768758196625,0.91237272,3337.5,3335.9,0.28899183]
[1768758196825,0.91237272,3337.4,3335.9,0.28899183]
[1768758197127,0.91237272,3337.3,3335.9,0.28899183]
[1768758197328,0.91237272,3337.2,3335.9,0.28899183]
[1768758197529,0.91237272,3337.1,3335.9,0.28899183]
[1768758197726,0.91237272,3337.0,3335.9,0.28899183]
[1768758197927,2.71284806,3337.6,3335.9,0.28899183]
[1768758198127,0.91237626,3337.5,3335.9,0.28899183]
[1768758198328,0.91237626,3337.4,3335.9,0.28899183]
[1768758198527,0.91237626,3337.3,3335.9,0.28899183]
[1768758198726,0.91237626,3337.2,3335.9,0.28899183]
[1768758198927,0.91237626,3337.1,3335.9,0.28899183]
[1768758199132,0.91237626,3337.0,3335.9,0.28899183]
[1768758199331,2.71284806,3337.6,3335.9,0.28899183]
[1768758199534,0.91235933,3337.5,3335.9,0.28899183]
[1768758199735,0.91235933,3337.4,3335.9,0.28899183]
[1768758200036,0.91235933,3337.3,3335.9,0.28899183]
[1768758200332,0.91235933,3337.2,3335.9,0.28899183]
[1768758200527,0.91235933,3337.1,3335.9,0.28899183]
[1768758200727,0.91235933,3337.0,3335.9,0.28899183]
[1768758200922,2.71284806,3337.6,3335.9,0.28899183]
[1768758201122,0.91236224,3337.5,3335.9,0.28899183]
[1768758201319,0.91236224,3337.4,3335.9,0.28899183]
[1768758201523,0.91236224,3337.3,3335.9,0.28899183]
[1768758201725,0.91236224,3337.2,3335.9,0.28899183]
[1768758201921,0.91236224,3337.1,3335.9,0.28899183]
[1768758202124,0.91236224,3337.0,3335.9,0.28899183]
[1768758202324,2.71284806,3337.6,3335.9,0.28899183]
[1768758202520,0.91236283,3337.5,3336.1,0.13857255]
[1768758202737,0.91236283,3337.4,3336.1,0.13857255]
[1768758203033,0.91236283,3337.3,3336.1,0.13857255]
[1768758203334,0.91236283,3337.2,3336.1,0.13857255]
[1768758203521,0.91236283,3337.1,3336.1,0.13857255]
[1768758203725,0.91236283,3337.0,3336.1,0.13857255]
[1768758203925,2.57613682,3337.6,3336.1,0.13857255]
[1768758204126,0.91235983,3337.5,3336.1,0.13857255]
[1768758204335,0.91235983,3337.4,3336.1,0.13857255]
[1768758204633,0.91235983,3337.3,3336.1,0.13857255]
[1768758204836,0.91235983,3337.2,3336.1,0.13857255]
[1768758205028,0.91235983,3337.1,3336.1,0.13857255]
[1768758205228,0.91235983,3337.0,3336.1,0.13857255]
[1768758205531,2.57613682,3337.6,3336.1,0.13857255]
[1768758205730,0.91236011,3337.5,3336.1,0.13857255]
[1768758206024,0.91236011,3337.4,3336.1,0.13857255]
[1768758206226,0.91236011,3337.3,3336.1,0.13857255]
[1768758206425,0.91236011,3337.2,3336.1,0.13857255]
[1768758206626,0.91236011,3337.1,3336.1,0.13857255]
[1768758206826,0.91236011,3337.0,3336.1,0.13857255]
[1768758207025,2.57613682,3337.6,3336.1,0.13857255]
[1768758207222,0.9123584,3337.5,3336.1,0.13857255]
[1768758207426,0.9123584,3337.4,3336.1,0.13857255]
[1768758207733,0.9123584,3337.3,3336.1,0.13857255]
[1768758207933,0.9123584,3337.2,3336.1,0.13857255]
[1768758208234,0.9123584,3337.1,3336.1,0.13857255]
[1768758208432,0.9123584,3337.0,3336.1,0.13857255]
[1768758208637,2.57613682,3337.6,3336.1,0.13857255]
[1768758208833,0.91235793,3337.5,3336.1,0.13857255]
[1768758209023,0.91235793,3337.4,3336.1,0.13857255]
[1768758209227,0.91235793,3337.3,3336.1,0.13857255]
[1768758209429,0.91235793,3337.2,3336.1,0.13857255]
[1768758209629,0.91235793,3337.1,3336.1,0.13857255]
[1768758209830,0.91235793,3337.0,3336.1,0.13857255]
[1768758210030,2.57613682,3337.6,3336.1,0.13857255]
[1768758210231,0.91235811,3337.5,3336.1,0.13857255]
[1768758210427,0.91235811,3337.4,3336.1,0.13857255]
[1768758210633,0.91235811,3337.3,3336.1,0.13857255]
[1768758210836,0.91235811,3337.2,3336.1,0.13857255]
[1768758211031,0.91235811,3337.1,3336.1,0.13857255]
[1768758211230,0.91235811,3337.0,3336.1,0.13857255]
[1768758211432,0.9589106,3337.3,3336.1,0.13857255]
[1768758211637,0.9123578,3337.2,3336.1,0.13857255]
[1768758211837,0.9123578,3337.1,3336.1,0.13857255]
[1768758212034,0.9123578,3337.0,3336.1,0.13857255]
[1768758212233,0.9589106,3337.3,3336.1,0.13857255]
[1768758212427,0.91235669,3337.2,3336.1,0.13857255]
[1768758212633,0.9589106,3337.3,3336.1,0.13857255]
[1768758212634,0.91235669,3337.1,3336.1,0.13857255]
[1768758212831,0.91235669,3337.0,3336.1,0.13857255]
[1768758213031,0.9589106,3337.3,3336.1,0.13857255]
[1768758213231,0.91235652,3337.2,3336.1,0.13857255]
[1768758213434,0.91235652,3337.1,3336.1,0.13857255]
[1768758213633,0.91235652,3337.0,3336.1,0.13857255]
[1768758213841,0.9589106,3337.3,3336.1,0.13857255]
[1768758214035,0.9123571,3337.2,3336.1,0.13857255]
[1768758214235,0.9123571,3337.1,3336.1,0.13857255]
[1768758214532,0.9123571,3337.0,3336.1,0.13857255]
[1768758214734,0.9589106,3337.3,3336.1,0.13857255]
[1768758214929,0.91235771,3337.2,3336.1,0.13857255]
[1768758215132,0.91235771,3337.1,3336.1,0.13857255]
[1768758215328,0.91235771,3337.0,3336.1,0.13857255]
[1768758215533,1.61714058,3337.6,3336.1,0.13857255]
[1768758215733,0.9589106,3337.3,3336.1,0.13857255]
[1768758215929,0.91235812,3337.2,3336.1,0.13857255]
[1768758216135,0.91235812,3337.1,3336.1,0.13857255]
[1768758216437,0.91235812,3337.0,3336.1,0.13857255]
[1768758216637,0.9589106,3337.3,3336.1,0.13857255]
[1768758216844,0.91235837,3337.2,3336.1,0.13857255]
[1768758217043,0.91235837,3337.1,3336.1,0.13857255]
[1768758217243,0.91235837,3337.0,3336.1,0.13857255]
[1768758217447,0.9589106,3337.3,3336.1,0.13857255]
[1768758217744,0.91235875,3337.2,3336.1,0.13857255]
[1768758217945,0.91235875,3337.1,3336.1,0.13857255]
[1768758218143,0.91235875,3337.0,3336.1,0.13857255]
[1768758218345,0.9589106,3337.3,3336.1,0.13857255]
[1768758218541,0.9123592,3337.2,3336.1,0.13857255]
[1768758218743,0.9123592,3337.1,3336.1,0.13857255]
[1768758218942,0.9123592,3337.0,3336.1,0.13857255]
[1768758219143,0.9589106,3337.3,3336.1,0.13857255]
[1768758219344,0.91235746,3337.2,3336.1,0.13857255]
[1768758219550,0.91235746,3337.1,3336.1,0.13857255]
[1768758219748,0.91235746,3337.0,3336.1,0.13857255]
[1768758219949,0.9589106,3337.3,3336.1,0.13857255]
[1768758220149,0.91235745,3337.2,3336.1,0.13857255]
[1768758220349,0.91235745,3337.1,3336.1,0.13857255]
[1768758220550,0.9589106,3337.3,3336.1,0.13857255]
[1768758220551,0.91235745,3337.0,3336.1,0.13857255]
[1768758220743,0.9589106,3337.3,3336.1,0.13857255]
[1768758220944,0.91235808,3337.2,3336.0,0.14994]
[1768758221144,0.91235808,3337.1,3336.0,0.14994]
[1768758221346,0.91235808,3337.0,3336.0,0.14994]
[1768758221546,0.9589106,3337.3,3336.0,0.14994]
[1768758221755,0.91236016,3337.2,3336.0,0.14994]
[1768758221956,0.91236016,3337.1,3336.0,0.14994]
[1768758222254,0.91236016,3337.0,3336.0,0.14994]
[1768758222455,0.9589106,3337.3,3336.0,0.14994]
[1768758222653,0.91236038,3337.2,3336.0,0.14994]
[1768758222853,0.91236038,3337.1,3336.0,0.14994]
[1768758223054,0.91236038,3337.0,3336.0,0.14994]
[1768758223352,0.9589106,3337.3,3336.0,0.14994]
[1768758223553,0.91236083,3337.2,3336.0,0.14994]
[1768758223851,0.91236083,3337.1,3336.0,0.14994]
[1768758224052,0.91236083,3337.0,3336.0,0.14994]
[1768758224251,0.9589106,3337.3,3336.0,0.14994]
[1768758224559,0.91236111,3337.2,3336.0,0.14994]
[1768758224758,0.91236111,3337.1,3336.0,0.14994]
[1768758225061,0.91236111,3337.0,3336.0,0.14994]
[1768758225251,0.9589106,3337.3,3336.0,0.14994]
[1768758225449,0.91236134,3337.2,3336.0,0.14994]
[1768758225650,0.91236134,3337.1,3336.0,0.14994]
[1768758225860,0.91236134,3337.0,3336.0,0.14994]
[1768758226157,0.9589106,3337.3,3336.0,0.14994]
[1768758226348,0.91235941,3337.2,3336.0,0.14994]
[1768758226552,0.91235941,3337.1,3336.0,0.14994]
[1768758226863,0.91235941,3337.0,3336.0,0.14994]
[1768758227049,0.9589106,3337.3,3336.0,0.14994]
[1768758227245,0.9589106,3337.1,3336.0,0.14994]
[1768758227449,0.91235738,3337.0,3336.0,0.14994]
[1768758227750,0.9589106,3337.1,3336.0,0.14994]
[1768758227945,0.91235715,3337.0,3336.0,0.14994]
[1768758228149,0.9589106,3337.1,3336.0,0.14994]
[1768758228460,0.91235647,3337.0,3336.0,0.14994]
[1768758228660,0.9589106,3337.1,3336.0,0.14994]
[1768758228846,0.91273614,3337.0,3336.0,0.14994]
[1768758229052,0.9589106,3337.1,3336.0,0.14994]
[1768758229254,0.91273402,3337.0,3336.0,0.14994]
[1768758229455,0.9589106,3337.1,3336.0,0.14994]
[1768758229654,0.91273419,3337.0,3336.0,0.14994]
[1768758229854,0.9589106,3337.1,3336.0,0.14994]
[1768758230054,0.91273387,3337.0,3336.0,0.14994]
[1768758230255,0.9589106,3337.1,3336.0,0.14994]
[1768758230459,0.91273265,3337.0,3336.0,0.14994]
[1768758230658,0.9589106,3337.1,3336.0,0.14994]
[1768758230863,0.91273262,3337.0,3336.0,0.14994]
[1768758231160,0.9589106,3337.1,3336.0,0.14994]
[1768758231359,0.9127329,3337.0,3336.0,0.14994]
[1768758231557,0.9589106,3337.1,3336.0,0.14994]
[1768758231756,0.91273287,3337.0,3336.0,0.14994]
[1768758231956,0.9589106,3337.1,3336.0,0.14994]
[1768758232160,0.91273283,3337.0,3336.0,0.14994]
[1768758232361,0.9589106,3337.1,3336.0,0.14994]
[1768758232555,0.91273161,3337.0,3336.0,0.14994]
[1768758232756,0.9589106,3337.1,3336.0,0.14994]
[1768758232953,0.91273149,3337.0,3336.0,0.14994]
[1768758233165,0.9589106,3337.1,3336.0,0.14994]
[1768758233354,0.91273102,3337.0,3336.0,0.14994]
[1768758233550,0.9589106,3337.1,3336.0,0.14994]
[1768758233755,0.91273099,3337.0,3336.0,0.14994]
[1768758233968,0.9589106,3337.1,3336.0,0.14994]
[1768758234157,0.91273096,3337.0,3336.0,0.14994]
[1768758234464,0.9589106,3337.1,3336.0,0.14994]
[1768758234650,0.9127307,3337.0,3336.0,0.14994]
[1768758234850,0.9589106,3337.1,3336.0,0.14994]
[1768758235053,0.91273069,3337.0,3336.0,0.14994]
[1768758235352,0.9589106,3337.1,3336.0,0.14994]
[1768758235553,0.91273062,3337.0,3336.0,0.14994]
[1768758235756,0.9589106,3337.1,3336.0,0.14994]
[1768758235957,0.9127307,3337.0,3336.0,0.14994]
[1768758236164,0.9589106,3337.1,3336.0,0.14994]
[1768758236462,0.91273085,3337.0,3336.0,0.14994]
[1768758236661,0.9589106,3337.1,3336.0,0.14994]
[1768758236964,0.91273082,3337.0,3336.0,0.14994]
[1768758237157,0.9589106,3337.1,3336.0,0.14994]
[1768758237456,0.91273127,3337.0,3336.0,0.14994]
[1768758237656,0.9589106,3337.1,3336.0,0.14994]
[1768758237855,0.91273133,3337.0,3336.0,0.14994]
[1768758238058,0.9589106,3337.1,3336.0,0.14994]
[1768758238357,0.91273193,3337.0,3336.0,0.14994]
[1768758238556,0.9589106,3337.1,3336.0,0.14994]
[1768758238758,0.9127319,3337.0,3336.0,0.14994]
[1768758238956,0.9589106,3337.1,3336.0,0.14994]
[1768758239164,0.91273198,3337.0,3336.0,0.14994]
[1768758239365,0.9589106,3337.1,3336.0,0.14994]
[1768758239566,0.91273276,3337.0,3336.0,0.14994]
[1768758239765,0.9589106,3337.1,3336.0,0.14994]
[1768758239968,0.91273273,3337.0,3336.0,0.14994]
[1768758240162,0.9589106,3337.1,3336.0,0.14994]
[1768758240362,0.91273344,3337.0,3336.0,0.14994]
[1768758240661,0.9589106,3337.1,3336.0,0.14994]
[1768758240861,0.9127335,3337.0,3336.0,0.14994]
[1768758241062,0.9589106,3337.1,3336.0,0.14994]
[1768758241264,0.91273432,3337.0,3336.0,0.14994]
[1768758241465,0.9589106,3337.1,3336.0,0.14994]
[1768758241660,0.91273467,3337.0,3336.0,0.14994]
[1768758241865,0.9589106,3337.1,3336.0,0.14994]
[1768758242073,0.91273465,3337.0,3336.0,0.14994]
[1768758242269,0.9589106,3337.1,3336.0,0.14994]
[1768758242469,0.9127363,3337.0,3336.0,0.14994]
[1768758242766,0.9589106,3337.1,3336.0,0.14994]
[1768758242967,0.91273625,3337.0,3336.0,0.14994]
[1768758243172,0.9589106,3337.1,3336.0,0.14994]
[1768758243362,0.91273765,3337.0,3336.0,0.14994]
[1768758243562,0.9589106,3337.1,3336.0,0.14994]
[1768758243764,0.91273825,3337.0,3336.0,0.14994]
[1768758244057,0.9589106,3337.1,3336.0,0.14994]
[1768758244262,0.91273878,3337.0,3336.0,0.14994]
[1768758244562,0.9589106,3337.1,3336.0,0.14994]
[1768758244759,0.9127395,3337.0,3336.0,0.14994]
[1768758244968,0.9589106,3337.1,3336.0,0.14994]
[1768758245168,0.91274025,3337.0,3336.0,0.14994]
[1768758245368,0.9589106,3337.1,3336.0,0.14994]
[1768758245569,0.91273996,3337.0,3336.0,0.14994]
[1768758245757,0.9589106,3337.1,3336.0,0.14994]
[1768758245965,0.91273978,3337.0,3336.0,0.14994]
[1768758246165,0.9589106,3337.1,3336.0,0.14994]
[1768758246366,0.91274118,3337.0,3336.0,0.14994]
[1768758246667,0.9589106,3337.1,3336.0,0.14994]
[1768758246866,0.91274219,3337.0,3336.0,0.14994]
[1768758247064,0.9589106,3337.1,3336.0,0.14994]
[1768758247265,0.91274265,3337.0,3336.0,0.14994]
[1768758247473,0.9589106,3337.1,3336.0,0.14994]
[1768758247674,0.91274137,3337.0,3336.0,0.14994]
[1768758247873,0.9589106,3337.1,3336.0,0.14994]
[1768758248074,0.91274172,3337.0,3336.0,0.14994]
[1768758248275,0.9589106,3337.1,3336.0,0.14994]
[1768758248465,0.91274362,3337.0,3336.0,0.14994]
[1768758248666,0.9589106,3337.1,3336.0,0.14994]
[1768758248865,0.91274365,3337.0,3336.0,0.14994]
[1768758249070,0.9589106,3337.1,3336.0,0.14994]
[1768758249266,0.91274608,3337.0,3336.0,0.14994]
[1768758249471,0.9589106,3337.1,3336.0,0.14994]
[1768758249666,0.91274659,3337.0,3336.0,0.14994]
[1768758249871,0.9589106,3337.1,3336.0,0.14994]
[1768758250074,0.91274656,3337.0,3336.0,0.14994]
[1768758250276,0.9589106,3337.1,3336.0,0.14994]
[1768758250468,0.91275013,3337.0,3336.0,0.14994]
[1768758250668,0.9589106,3337.1,3336.0,0.14994]
[1768758250968,0.91275011,3337.0,3336.0,0.14994]
[1768758251169,0.9589106,3337.1,3336.0,0.14994]
[1768758251370,0.91275066,3337.0,3336.0,0.14994]
[1768758251670,0.9589106,3337.1,3336.0,0.14994]
[1768758251866,0.91275102,3337.0,3336.0,0.14994]
[1768758252172,0.9589106,3337.1,3336.0,0.14994]
[1768758252371,0.9127523,3337.0,3336.0,0.14994]
[1768758252570,0.9589106,3337.1,3336.0,0.14994]
[1768758252771,0.91275261,3337.0,3336.0,0.14994]
[1768758252973,0.9589106,3337.1,3336.0,0.14994]
[1768758253172,0.91275264,3337.0,3336.0,0.14994]
[1768758253377,0.9589106,3337.1,3336.0,0.14994]
[1768758253577,0.91275509,3337.0,3336.0,0.14994]
[1768758253778,0.9589106,3337.1,3336.0,0.14994]
[1768758253968,0.91275512,3337.0,3336.0,0.14994]
[1768758254169,0.9589106,3337.1,3336.0,0.14994]
[1768758254379,0.91275808,3337.0,3336.0,0.14994]
[1768758254573,0.9589106,3337.1,3336.0,0.14994]
[1768758254777,0.91275828,3337.0,3336.0,0.14994]
[1768758255073,0.9589106,3337.1,3336.0,0.14994]
[1768758255270,0.91275882,3337.0,3336.0,0.14994]
[1768758255477,0.9589106,3337.1,3336.0,0.14994]
[1768758255680,0.91275897,3337.0,3336.0,0.14994]
[1768758255878,0.9589106,3337.1,3336.0,0.14994]
[1768758256079,0.91275892,3337.0,3336.0,0.14994]
[1768758256379,0.9589106,3337.1,3336.0,0.14994]
[1768758256678,0.91275958,3337.0,3336.0,0.14994]
[1768758256868,0.9589106,3337.1,3336.0,0.14994]
[1768758257070,0.91275961,3337.0,3336.0,0.14994]
[1768758257279,0.9589106,3337.1,3336.0,0.14994]
[1768758257579,0.91276105,3337.0,3336.0,0.14994]
[1768758257778,0.9589106,3337.1,3336.0,0.14994]
[1768758257978,0.91276108,3337.0,3336.0,0.14994]
[1768758258181,0.9589106,3337.1,3336.0,0.14994]
[1768758258374,0.91276146,3337.0,3336.0,0.14994]
[1768758258571,0.9589106,3337.1,3336.0,0.14994]
[1768758258773,0.90970251,3337.0,3336.0,0.14994]
[1768758258980,0.9589106,3337.1,3336.0,0.14994]
[1768758259181,0.90970256,3337.0,3336.0,0.14994]
[1768758259381,0.9589106,3337.1,3336.0,0.14994]
[1768758259582,0.90970326,3337.0,3336.0,0.14994]
[1768758259778,0.9589106,3337.1,3336.0,0.14994]
[1768758259978,0.90970324,3337.0,3336.0,0.14994]
[1768758260185,0.9589106,3337.1,3336.0,0.14994]
[1768758260382,0.90970339,3337.0,3336.0,0.14994]
[1768758260579,0.9589106,3337.1,3336.0,0.14994]
[1768758260779,0.90970338,3337.0,3336.0,0.14994]
[1768758260981,0.9589106,3337.1,3336.0,0.14994]
[1768758261181,0.90970344,3337.0,3336.0,0.14994]
[1768758261383,0.9589106,3337.1,3336.0,0.14994]
[1768758261582,0.90970328,3337.0,3336.0,0.14994]
[1768758261785,0.9589106,3337.1,3336.0,0.14994]
[1768758262081,0.90970266,3337.0,3336.0,0.14994]
[1768758262282,0.9589106,3337.1,3336.0,0.14994]
[1768758262486,0.90970278,3337.0,3336.0,0.14994]
[1768758262680,0.9589106,3337.1,3336.0,0.14994]
[1768758262872,0.90970276,3337.0,3336.0,0.14994]
[1768758263075,0.9589106,3337.1,3336.0,0.14994]
[1768758263278,0.90970253,3337.0,3336.0,0.14994]
[1768758263477,0.9589106,3337.1,3336.0,0.14994]
[1768758263679,0.90970279,3337.0,3336.0,0.14994]
[1768758263882,0.9589106,3337.1,3336.0,0.14994]
[1768758264183,0.90970276,3337.0,3336.0,0.14994]
[1768758264378,0.9589106,3337.1,3336.0,0.14994]
[1768758264578,0.90970283,3337.0,3336.0,0.14994]
[1768758264777,0.9589106,3337.1,3336.0,0.14994]
[1768758264977,0.90970279,3337.0,3336.0,0.14994]
[1768758265180,0.9589106,3337.1,3336.0,0.14994]
[1768758265374,0.90970275,3337.0,3336.0,0.14994]
[1768758265577,0.9589106,3337.1,3336.0,0.14994]
[1768758265875,0.90970283,3337.0,3336.0,0.14994]
[1768758266077,0.9589106,3337.1,3336.0,0.14994]
[1768758266278,0.9589106,3336.8,3336.0,0.14994]
[1768758266481,0.9589106,3336.5,3335.9,0.00274223]
[1768758266687,0.47150955,3336.5,3335.9,0.00274223]
[1768758270887,1.09337675,3336.9,3335.9,0.00274223]
[1768758271089,0.92013836,3336.8,3335.9,0.00274223]
[1768758271292,0.92013836,3336.7,3335.9,0.00274223]
[1768758271493,0.92013836,3336.6,3335.9,0.00274223]
[1768758271789,1.09337675,3336.9,3335.9,0.00274223]
[1768758271979,0.91989224,3336.8,3335.9,0.00274223]
[1768758272183,0.91989224,3336.7,3335.9,0.00274223]
[1768758272391,0.91989224,3336.6,3335.9,0.00274223]
[1768758272591,1.09337675,3336.9,3335.9,0.00274223]
[1768758272790,0.91970301,3336.8,3335.9,0.00274223]
[1768758272989,0.91970301,3336.7,3335.9,0.00274223]
[1768758273188,0.91970301,3336.6,3335.9,0.00274223]
[1768758273393,1.09337675,3336.9,3335.9,0.00274223]
[1768758273592,0.91955562,3336.8,3335.9,0.00274223]
[1768758273790,0.91955562,3336.7,3335.9,0.00274223]
[1768758274091,0.91955562,3336.6,3335.9,0.00274223]
[1768758274282,1.09337675,3336.9,3335.9,0.00274223]
[1768758274480,0.91943426,3336.8,3335.9,0.00274223]
[1768758274680,0.91943426,3336.7,3335.9,0.00274223]
[1768758274892,0.91943426,3336.6,3335.9,0.00274223]
[1768758275093,1.09337675,3336.9,3335.9,0.00274223]
[1768758275290,0.91943426,3336.8,3335.9,0.00274223]
[1768758275492,0.91943426,3336.7,3335.9,0.00274223]
[1768758275789,0.91943426,3336.6,3335.9,0.00274223]
[1768758275991,1.09337675,3336.9,3335.9,0.00274223]
[1768758276190,0.91933253,3336.8,3335.9,0.00274223]
[1768758276391,0.91933253,3336.7,3335.9,0.00274223]
[1768758276593,1.09337675,3336.9,3335.9,0.00274223]
[1768758276791,0.91924949,3336.8,3335.9,0.00274223]
[1768758276992,0.91924949,3336.7,3335.9,0.00274223]
[1768758277191,1.09337675,3336.9,3335.9,0.00274223]
[1768758277397,0.91918002,3336.8,3335.9,0.00274223]
[1768758277597,0.91918002,3336.7,3335.9,0.00274223]
[1768758277899,1.09337675,3336.9,3335.9,0.00274223]
[1768758278101,0.91918114,3336.8,3335.9,0.00274223]
[1768758278290,0.91918114,3336.7,3335.9,0.00274223]
[1768758278490,1.09337675,3336.9,3335.9,0.00274223]
[1768758278784,0.91912588,3336.8,3335.9,0.00274223]
[1768758278985,0.91912588,3336.7,3335.9,0.00274223]
[1768758279191,1.09337675,3336.9,3335.9,0.00274223]
[1768758279498,0.9190825,3336.8,3335.9,0.00274223]
[1768758279692,0.9190825,3336.7,3335.9,0.00274223]
[1768758279899,1.09337675,3336.9,3335.9,0.00274223]
[1768758280192,0.9190825,3336.8,3335.9,0.00274223]
[1768758280399,0.9190825,3336.7,3335.9,0.00274223]
[1768758280598,1.09337675,3336.9,3335.9,0.00274223]
[1768758280799,0.91905092,3336.8,3335.9,0.00274223]
[1768758281001,0.91905092,3336.7,3335.9,0.00274223]
[1768758281298,1.09337675,3336.9,3335.9,0.00274223]
[1768758281493,0.91903056,3336.8,3335.9,0.00274223]
[1768758281691,0.91903056,3336.7,3335.9,0.00274223]
[1768758281892,1.09337675,3336.9,3335.9,0.00274223]
[1768758282093,0.91903056,3336.8,3335.9,0.00274223]
[1768758282293,0.91903056,3336.7,3335.9,0.00274223]
[1768758282496,1.09337675,3336.9,3335.9,0.00274223]
[1768758282700,0.91902069,3336.8,3335.9,0.00274223]
[1768758282899,0.91902069,3336.7,3335.9,0.00274223]
[1768758283095,1.09337675,3336.9,3335.9,0.00274223]
[1768758283297,0.91902089,3336.8,3335.9,0.00274223]
[1768758283500,0.91902089,3336.7,3335.9,0.00274223]
[1768758283699,1.09337675,3336.9,3335.9,0.00274223]
[1768758283898,0.91902241,3336.8,3335.9,0.00274223]
[1768758284093,0.91902241,3336.7,3335.9,0.00274223]
[1768758284292,1.09337675,3336.9,3335.9,0.00274223]
[1768758284497,0.91903432,3336.8,3335.9,0.00274223]
[1768758284696,0.91903432,3336.7,3335.9,0.00274223]
[1768758284898,1.09337675,3336.9,3335.9,0.00274223]
[1768758285098,0.91903431,3336.8,3335.9,0.00274223]
[1768758285304,0.91903431,3336.7,3335.9,0.00274223]
[1768758285506,1.09337675,3336.9,3335.9,0.00274223]
[1768758285696,0.91905685,3336.8,3335.9,0.00274223]
[1768758285898,0.91905685,3336.7,3335.9,0.00274223]
[1768758286195,0.13403233,3336.9,3335.9,0.00274223]
[1768758286396,0.91909132,3336.8,3335.9,0.00274223]
[1768758286596,0.91909132,3336.7,3335.9,0.00274223]
[1768758286804,0.13403233,3336.9,3335.9,0.00274223]
[1768758287007,0.9190917,3336.8,3335.9,0.00274223]
[1768758287205,0.9190917,3336.7,3335.9,0.00274223]
[1768758287406,0.13403233,3336.9,3335.9,0.00274223]
[1768758287607,0.91913727,3336.8,3335.9,0.00274223]
[1768758287905,0.91913727,3336.7,3335.9,0.00274223]
[1768758288105,0.13403233,3336.9,3335.9,0.00274223]
[1768758288305,0.91913727,3336.8,3335.9,0.00274223]
[1768758288510,0.91913727,3336.7,3335.9,0.00274223]
[1768758288807,0.92220466,3336.6,3335.9,0.00274223]
[1768758289002,0.13403233,3336.9,3335.9,0.00274223]
[1768758289203,0.92220563,3336.8,3335.9,0.00274223]
[1768758289405,0.92220563,3336.7,3335.9,0.00274223]
[1768758289603,0.92220563,3336.6,3335.9,0.00274223]
[1768758289904,0.13403233,3336.9,3335.9,0.00274223]
[1768758290206,0.92227978,3336.8,3335.9,0.00274223]
[1768758290507,0.92227978,3336.7,3335.9,0.00274223]
[1768758290706,0.92227978,3336.6,3335.9,0.00274223]
[1768758291012,0.13403233,3336.9,3335.9,0.00274223]
[1768758291200,0.92236637,3336.8,3335.9,0.00274223]
[1768758291395,0.92236637,3336.7,3335.9,0.00274223]
[1768758291700,0.92236637,3336.6,3335.9,0.00274223]
[1768758291899,0.13403233,3336.9,3335.9,0.00274223]
[1768758292102,0.92247045,3336.8,3335.9,0.00274223]
[1768758292305,0.92247045,3336.7,3335.9,0.00274223]
[1768758292506,0.92247045,3336.6,3335.9,0.00274223]
[1768758292708,0.13403233,3336.9,3335.9,0.00274223]
[1768758292909,0.92259655,3336.8,3335.9,0.00274223]
[1768758293109,0.92259655,3336.7,3335.9,0.00274223]
[1768758293308,0.92259655,3336.6,3335.9,0.00274223]
[1768758293512,0.13403233,3336.9,3335.9,0.00274223]
[1768758293701,0.92275187,3336.8,3335.9,0.00274223]
[1768758293901,0.92275187,3336.7,3335.9,0.00274223]
[1768758294102,0.92275187,3336.6,3335.9,0.00274223]
[1768758294301,0.13403233,3336.9,3335.9,0.00274223]
[1768758294512,0.92294583,3336.8,3335.9,0.00274223]
[1768758294805,0.92294583,3336.7,3335.9,0.00274223]
[1768758295008,0.92294583,3336.6,3335.9,0.00274223]
[1768758295203,1.61495146,3337.1,3335.9,0.00274223]
[1768758295402,2.53815415,3337.1,3335.9,0.00274223]
[1768758297311,2.53815415,3337.0,3335.9,0.00274223]
[1768758297514,0.92320269,3336.9,3335.9,0.00274223]
[1768758297811,0.92320269,3336.8,3335.9,0.00274223]
[1768758298011,0.92320269,3336.7,3335.9,0.00274223]
[1768758298213,0.92320269,3336.6,3335.9,0.00274223]
[1768758298410,0.92320269,3336.5,3335.9,0.00274223]
[1768758298609,1.61495146,3337.1,3335.9,0.00274223]
[1768758300414,2.53869954,3337.0,3335.9,0.00274223]
[1768758300616,0.92374808,3336.9,3335.9,0.00274223]
[1768758300816,0.92374808,3336.8,3335.9,0.00274223]